bitfinex-derivatives/quotes_BTCF0:USTF0_20250528
["timestamp","ask_amount","ask_price","bid_price","bid_amount"]
[1748391184155,1.18271015,108810.0,108800.0,0.96605333]
[1748391187550,1.18271015,108810.0,108800.0,0.54601333]
[1748391187757,1.18271015,108810.0,108800.0,0.96605333]
[1748391188360,1.14585885,108810.0,108800.0,0.96605333]
[1748391188564,1.1827123,108810.0,108800.0,0.9733992]
[1748391189064,1.1827123,108810.0,108800.0,0.9441992]
[1748391189256,1.1827123,108810.0,108800.0,0.9113992]
[1748391190366,1.1827123,108810.0,108800.0,0.86345495]
[1748391190565,1.1827123,108810.0,108800.0,0.91140438]
[1748391190959,1.1827123,108810.0,108800.0,0.86345495]
[1748391192761,1.14585885,108810.0,108800.0,0.86345495]
[1748391192966,1.1827182,108810.0,108800.0,0.86345495]
[1748391195163,1.12805551,108810.0,108800.0,0.86345495]
[1748391195472,1.1827182,108810.0,108800.0,0.86345495]
[1748391195964,1.1827182,108810.0,108800.0,0.44341495]
[1748391196169,0.63217875,108810.0,108800.0,1.11303355]
[1748391196569,0.63217875,108810.0,108800.0,1.14583355]
[1748391196775,0.63217875,108810.0,108800.0,1.14571355]
[1748391197769,0.63217875,108810.0,108800.0,1.19365953]
[1748391198270,0.68684144,108810.0,108800.0,1.19365953]
[1748391201674,0.68684068,108810.0,108800.0,1.19365574]
[1748391202171,0.63217799,108810.0,108800.0,1.19365574]
[1748391202376,0.68684068,108810.0,108800.0,1.19365574]
[1748391202582,0.68684068,108810.0,108800.0,1.05857898]
[1748391202877,0.68684068,108810.0,108800.0,1.01063679]
[1748391204685,0.68684068,108810.0,108800.0,1.05857735]
[1748391204977,0.68684068,108810.0,108800.0,1.01063679]
[1748391207599,0.5317192,108810.0,108800.0,1.78903031]
[1748391207880,0.5317192,108810.0,108800.0,1.88895355]
[1748391208471,0.5317192,108810.0,108800.0,2.02403031]
[1748391209077,0.5307192,108810.0,108800.0,1.66770988]
[1748391209380,0.5307192,108810.0,108800.0,2.07294016]
[1748391209571,0.5297192,108810.0,108800.0,1.88995355]
[1748391210375,0.5297192,108810.0,108800.0,2.02503031]
[1748391210771,0.5297192,108810.0,108800.0,1.61980003]
[1748391210971,0.5297192,108810.0,108800.0,1.88995355]
[1748391211573,0.5297192,108810.0,108800.0,1.9378483]
[1748391211973,0.5297192,108810.0,108800.0,2.07292506]
[1748391212482,0.5297194,108810.0,108800.0,2.02503031]
[1748391212781,0.5297194,108810.0,108800.0,2.07292029]
[1748391213482,0.346,108810.0,108800.0,2.07292029]
[1748391213888,0.314,108810.0,108800.0,2.18907845]
[1748391214077,0.314,108810.0,108800.0,2.34975755]
[1748391214384,0.0331,108820.0,108810.0,0.1837194]
[1748391214687,0.26234982,108830.0,108820.0,0.1837025]
[1748391214873,0.31544982,108830.0,108820.0,2.11206976]
[1748391215079,0.31544982,108830.0,108820.0,1.976993]
[1748391216177,0.31544982,108830.0,108820.0,1.37783948]
[1748391216178,0.31744982,108830.0,108820.0,1.37783948]
[1748391216376,0.31744982,108830.0,108820.0,1.977993]
[1748391216587,0.31844982,108830.0,108820.0,1.648993]
[1748391217286,0.31844982,108830.0,108820.0,1.60111484]
[1748391217789,0.31844982,108830.0,108820.0,1.33096132]
[1748391217988,0.31844982,108830.0,108820.0,1.60111484]
[1748391218483,0.31844982,108830.0,108820.0,0.26873882]
[1748391218689,1.05034982,108830.0,108820.0,0.29755758]
[1748391218889,1.05034982,108830.0,108820.0,0.99902008]
[1748391219493,1.05034982,108830.0,108820.0,0.99914008]
[1748391219692,1.24008927,108830.0,108820.0,0.48138008]
[1748391219881,1.24008927,108830.0,108820.0,0.90158008]
[1748391220283,1.10501251,108830.0,108820.0,0.90158008]
[1748391223092,1.10501251,108830.0,108820.0,0.29767758]
[1748391223295,1.10501251,108830.0,108820.0,0.90138008]
[1748391223687,1.10501251,108830.0,108820.0,0.48138008]
[1748391223988,1.24008927,108830.0,108820.0,0.67735676]
[1748391226100,1.24008927,108830.0,108820.0,0.54228]
[1748391226286,1.24008927,108830.0,108820.0,0.25707676]
[1748391226991,1.24008927,108830.0,108820.0,0.25719676]
[1748391227796,1.15547823,108830.0,108820.0,0.44089926]
[1748391228692,1.15347823,108830.0,108820.0,0.43989926]
[1748391228893,1.15647823,108830.0,108820.0,0.44089926]
[1748391229093,1.15547823,108830.0,108820.0,0.43989926]
[1748391229296,1.15847823,108830.0,108820.0,0.44089926]
[1748391230294,1.10381554,108830.0,108820.0,0.44089926]
[1748391230492,0.91476052,108830.0,108820.0,0.44089926]
[1748391230796,0.91476052,108830.0,108820.0,0.44538135]
[1748391231994,0.87801251,108830.0,108820.0,0.44538135]
[1748391232296,0.91477807,108830.0,108820.0,0.44538135]
[1748391232693,0.91477807,108830.0,108820.0,0.35078541]
[1748391232996,0.91477807,108830.0,108820.0,0.48586217]
[1748391235291,0.91477807,108830.0,108820.0,0.51506217]
[1748391237905,0.91477807,108830.0,108820.0,0.48586217]
[1748391239907,0.91477807,108830.0,108820.0,0.51506217]
[1748391240299,0.91477807,108830.0,108820.0,0.65013893]
[1748391240502,0.42397807,108830.0,108820.0,0.71283893]
[1748391240697,0.38721251,108830.0,108820.0,0.71283893]
[1748391241205,0.38721251,108830.0,108820.0,0.99888217]
[1748391243510,0.42402642,108830.0,108820.0,0.99888217]
[1748391244412,0.42402642,108830.0,108820.0,0.95840135]
[1748391244994,0.42402642,108830.0,108820.0,0.99895739]
[1748391245200,0.38721251,108830.0,108820.0,0.95840135]
[1748391245404,0.38721251,108830.0,108820.0,1.09347811]
[1748391246700,0.38721251,108830.0,108820.0,0.95840135]
[1748391247410,0.38721251,108830.0,108820.0,0.82332459]
[1748391247609,0.38721251,108830.0,108820.0,0.95832135]
[1748391250211,0.38721251,108830.0,108820.0,0.96832135]
[1748391254807,0.38721251,108830.0,108820.0,1.02236017]
[1748391255215,0.38721251,108830.0,108820.0,0.96832135]
[1748391256718,0.38721251,108830.0,108820.0,0.96820135]
[1748391256926,0.52228927,108830.0,108820.0,0.83312459]
[1748391257113,0.52228927,108830.0,108820.0,0.96820135]
[1748391258327,0.52228927,108830.0,108820.0,0.43432341]
[1748391258521,0.52228927,108830.0,108820.0,0.87598135]
[1748391258920,0.52228927,108830.0,108820.0,0.93002017]
[1748391259523,0.52228927,108830.0,108820.0,0.79494341]
[1748391259730,0.52228927,108830.0,108820.0,0.93002017]
[1748391260626,0.52228927,108830.0,108820.0,0.97793027]
[1748391261419,0.52228927,108830.0,108820.0,0.97793122]
[1748391261825,0.52228927,108830.0,108820.0,0.93002017]
[1748391262328,0.52228927,108830.0,108820.0,0.37422341]
[1748391262628,0.52228927,108830.0,108820.0,0.93022017]
[1748391264129,0.52228927,108830.0,108820.0,0.95942017]
[1748391264332,0.38721251,108830.0,108820.0,0.95942017]
[1748391266122,0.38721251,108830.0,108820.0,0.93578135]
[1748391266925,0.38721251,108830.0,108820.0,1.07085811]
[1748391267127,0.38721251,108830.0,108820.0,1.10165811]
[1748391268413,0.38721251,108830.0,108820.0,1.15569693]
[1748391269026,0.38721251,108830.0,108820.0,1.02062017]
[1748391270526,0.52228927,108830.0,108820.0,1.02062017]
[1748391272626,0.38721251,108830.0,108820.0,1.02062017]
[1748391274930,0.38721251,108830.0,108820.0,0.92042017]
[1748391275237,0.89228927,108830.0,108820.0,0.92042017]
[1748391276027,0.89228927,108830.0,108820.0,0.14860081]
[1748391276028,1.38816603,108830.0,108820.0,0.14860081]
[1748391276329,1.85230811,108830.0,108820.0,0.04720947]
[1748391276529,1.85230811,108830.0,108810.0,0.04198593]
[1748391276530,0.1837024,108820.0,108810.0,0.04198593]
[1748391276728,1.34948142,108820.0,108810.0,0.08198593]
[1748391276944,1.34948142,108820.0,108810.0,0.08210593]
[1748391277131,1.16577902,108820.0,108790.0,0.4775963]
[1748391277337,0.31881296,108800.0,108790.0,0.92963705]
[1748391277544,0.44881296,108800.0,108790.0,0.92963705]
[1748391277733,0.44881296,108800.0,108790.0,0.95885545]
[1748391278243,0.63855241,108800.0,108790.0,0.31945987]
[1748391278532,1.2370877,108800.0,108790.0,0.13870677]
[1748391278740,1.25107439,108800.0,108790.0,0.13870677]
[1748391278945,1.25107439,108800.0,108790.0,0.13858677]
[1748391279132,1.25107439,108800.0,108790.0,0.13870677]
[1748391279324,1.25107439,108800.0,108790.0,0.13858677]
[1748391279528,1.25107439,108800.0,108790.0,0.13870677]
[1748391279729,1.25207439,108800.0,108790.0,0.14088163]
[1748391279932,1.11713153,108800.0,108790.0,0.12787748]
[1748391280134,1.16001061,108800.0,108790.0,0.08879021]
[1748391280435,1.22451061,108800.0,108790.0,0.01381755]
[1748391280637,0.1837699,108780.0,108770.0,0.00091933]
[1748391280847,1.11444325,108780.0,108770.0,0.13091933]
[1748391281033,1.04253259,108780.0,108770.0,0.13091933]
[1748391281544,0.71253259,108780.0,108770.0,0.31470613]
[1748391281838,0.66253259,108780.0,108770.0,0.31470613]
[1748391282039,0.99553259,108780.0,108770.0,0.31470613]
[1748391282243,0.66553259,108780.0,108770.0,0.44991679]
[1748391282438,0.66553259,108780.0,108770.0,0.48261679]
[1748391282667,1.67675391,108780.0,108770.0,0.08659603]
[1748391282832,0.23844946,108770.0,108760.0,3e-08]
[1748391283035,0.10061426,108760.0,108730.0,0.067059]
[1748391283235,0.10061426,108760.0,108730.0,0.097059]
[1748391283236,0.59930016,108740.0,108730.0,0.097059]
[1748391283542,1.08451082,108740.0,108730.0,0.065459]
[1748391283747,0.80280016,108740.0,108730.0,0.2494334]
[1748391283930,0.66280016,108740.0,108730.0,0.2493134]
[1748391284133,0.66280016,108740.0,108730.0,0.032879]
[1748391284441,0.97280016,108740.0,108730.0,0.2177334]
[1748391284639,0.73280016,108740.0,108730.0,0.2177334]
[1748391284847,0.37200016,108740.0,108730.0,0.095779]
[1748391285038,0.73780016,108740.0,108730.0,0.095779]
[1748391285237,0.92780016,108740.0,108730.0,0.033879]
[1748391285551,0.92780016,108740.0,108730.0,0.2177334]
[1748391285848,0.94096982,108740.0,108730.0,0.2799334]
[1748391286034,1.07618048,108740.0,108730.0,0.2167334]
[1748391286234,1.11263562,108740.0,108730.0,0.032879]
[1748391286433,0.97742496,108740.0,108730.0,0.032759]
[1748391286743,1.16219335,108740.0,108730.0,0.032879]
[1748391287041,1.12573821,108740.0,108730.0,0.032879]
[1748391287243,0.95407192,108740.0,108730.0,0.032879]
[1748391287445,1.08928258,108740.0,108730.0,0.032879]
[1748391287629,1.08628258,108740.0,108730.0,0.032879]
[1748391288642,0.95107192,108740.0,108730.0,0.2167334]
[1748391288841,1.05903192,108740.0,108730.0,0.065179]
[1748391289036,0.95107192,108740.0,108730.0,0.2813333]
[1748391289235,0.95107192,108740.0,108730.0,0.128679]
[1748391289534,0.95107192,108740.0,108730.0,0.31701539]
[1748391290243,0.69107192,108740.0,108730.0,0.45222605]
[1748391290449,0.74107192,108740.0,108730.0,0.45222605]
[1748391290638,0.73190226,108740.0,108730.0,0.31701539]
[1748391291331,0.67253608,108740.0,108730.0,0.45222605]
[1748391291529,0.67253608,108740.0,108730.0,0.25183639]
[1748391291530,0.6631375,108740.0,108730.0,0.25183639]
[1748391291832,0.6631375,108740.0,108730.0,0.30833639]
[1748391292242,0.71780016,108740.0,108730.0,0.30833639]
[1748391292649,0.71780016,108740.0,108730.0,0.32142813]
[1748391292839,0.3023375,108740.0,108730.0,0.32142813]
[1748391293041,0.2523375,108740.0,108730.0,0.32142813]
[1748391293237,0.2523375,108740.0,108730.0,0.45660071]
[1748391293436,0.2523375,108740.0,108730.0,0.45658838]
[1748391293638,0.2523375,108740.0,108730.0,0.45657515]
[1748391294646,0.2523375,108740.0,108730.0,0.90406262]
[1748391294845,0.2523375,108740.0,108730.0,0.99766262]
[1748391295042,0.2523375,108740.0,108730.0,0.86245197]
[1748391296047,0.2523375,108740.0,108730.0,0.98466705]
[1748391296355,0.2523375,108740.0,108730.0,0.99766188]
[1748391296749,0.2523375,108740.0,108730.0,0.83613946]
[1748391296940,0.2523375,108740.0,108730.0,0.86613947]
[1748391297247,0.3123375,108740.0,108730.0,0.86613947]
[1748391297548,0.2523375,108740.0,108730.0,0.8661395]
[1748391297850,0.2523375,108740.0,108730.0,0.87062159]
[1748391298952,0.2523375,108740.0,108730.0,0.85762138]
[1748391299249,0.2523375,108740.0,108730.0,0.8706281]
[1748391299641,0.2523375,108740.0,108730.0,0.73533744]
[1748391299840,0.2523375,108740.0,108730.0,0.73545744]
[1748391300333,0.2523375,108740.0,108730.0,0.73546208]
[1748391300737,0.2523375,108740.0,108730.0,0.73548238]
[1748391301948,0.2523375,108740.0,108730.0,0.72245072]
[1748391302147,0.2523375,108740.0,108730.0,0.73549013]
[1748391302938,0.2523375,108740.0,108730.0,0.13624444]
[1748391303143,0.2523375,108740.0,108730.0,0.75549933]
[1748391303343,0.2523375,108740.0,108730.0,0.7685483]
[1748391304552,0.2523375,108740.0,108730.0,0.76857422]
[1748391305350,0.80301082,108740.0,108730.0,0.49535698]
[1748391305558,1.18301082,108740.0,108730.0,0.49547698]
[1748391305948,1.18301082,108740.0,108730.0,0.52677698]
[1748391306255,0.69780016,108740.0,108730.0,0.71063128]
[1748391306457,0.69780016,108740.0,108730.0,0.87904194]
[1748391306655,0.66780016,108740.0,108730.0,0.87904194]
[1748391307052,0.66780016,108740.0,108730.0,0.70165034]
[1748391307259,0.66780016,108740.0,108730.0,0.82165034]
[1748391307452,0.71780016,108740.0,108730.0,0.82165034]
[1748391307658,0.66780016,108740.0,108730.0,0.82165034]
[1748391307843,0.66780016,108740.0,108730.0,0.82613243]
[1748391308248,0.66780016,108740.0,108730.0,0.69092177]
[1748391308752,0.66780016,108740.0,108730.0,0.12460209]
[1748391309052,0.80301082,108740.0,108730.0,0.75745639]
[1748391309658,0.83968839,108740.0,108730.0,0.75745639]
[1748391310664,0.70447773,108740.0,108730.0,0.75745639]
[1748391310861,0.70447773,108740.0,108730.0,0.30845639]
[1748391311051,0.7044748,108740.0,108730.0,0.30845639]
[1748391312062,0.7144748,108740.0,108730.0,0.30845639]
[1748391312249,0.7044748,108740.0,108730.0,0.38180724]
[1748391312449,0.64981214,108740.0,108730.0,0.5170179]
[1748391312671,0.7044748,108740.0,108730.0,0.5477179]
[1748391313960,0.7044748,108740.0,108730.0,0.5577179]
[1748391314757,0.28901214,108740.0,108730.0,0.7277179]
[1748391314974,0.28901214,108740.0,108730.0,1.01108724]
[1748391315852,0.28901214,108740.0,108730.0,1.1786979]
[1748391316062,0.24337201,108740.0,108730.0,1.20348724]
[1748391316361,0.24337201,108740.0,108730.0,1.35258587]
[1748391316548,0.24337201,108740.0,108730.0,1.29854705]
[1748391317147,0.24237201,108740.0,108730.0,1.29854705]
[1748391317358,0.24237201,108740.0,108730.0,1.35258587]
[1748391317763,0.17887201,108740.0,108730.0,1.35258587]
[1748391317962,0.00013752,108760.0,108750.0,0.1838205]
[1748391318168,0.00013752,108760.0,108750.0,2.38737744]
[1748391318463,0.00013752,108760.0,108750.0,2.41817744]
[1748391318854,0.00013752,108760.0,108750.0,2.28296678]
[1748391319250,0.03153752,108760.0,108750.0,2.28396678]
[1748391319561,0.03153752,108760.0,108750.0,2.19213878]
[1748391319757,0.03153752,108760.0,108750.0,2.28408678]
[1748391320063,0.00213752,108760.0,108750.0,2.42029744]
[1748391320859,0.00213752,108760.0,108750.0,2.43502254]
[1748391321358,0.00213752,108760.0,108750.0,2.42429744]
[1748391322864,0.00213752,108760.0,108750.0,1.70347612]
[1748391323060,0.00213752,108760.0,108750.0,2.42681744]
[1748391323263,0.06593752,108760.0,108750.0,2.37270982]
[1748391323565,0.06593752,108760.0,108750.0,2.1022885]
[1748391323870,0.06593752,108760.0,108750.0,2.37270982]
[1748391326061,0.06593752,108760.0,108750.0,2.38622171]
[1748391327371,0.06593752,108760.0,108750.0,2.11580039]
[1748391327573,0.06593752,108760.0,108750.0,2.38622171]
[1748391328567,0.06593752,108760.0,108750.0,2.29427371]
[1748391329165,0.06593752,108760.0,108750.0,2.34838133]
[1748391330373,0.24974112,108760.0,108750.0,2.34838133]
[1748391333475,0.00213752,108760.0,108750.0,2.34838133]
[1748391334278,0.03363752,108760.0,108750.0,2.34838133]
[1748391336382,0.03363752,108760.0,108750.0,2.35286342]
[1748391336778,0.06533752,108760.0,108750.0,2.35286342]
[1748391343686,0.37327376,108790.0,108750.0,2.35286342]
[1748391343687,0.1870327,108790.0,108760.0,0.2297513]
[1748391343888,0.4970327,108790.0,108780.0,0.70677461]
[1748391344185,0.4970327,108790.0,108780.0,0.85726798]
[1748391344383,0.55169536,108790.0,108780.0,0.85726798]
[1748391345697,0.55169536,108790.0,108780.0,0.83027383]
[1748391345898,0.55269536,108790.0,108780.0,0.83027383]
[1748391346498,0.55369536,108790.0,108780.0,0.83127383]
[1748391346797,0.55469536,108790.0,108780.0,0.83227383]
[1748391347005,0.64839536,108790.0,108780.0,0.83227383]
[1748391347501,0.64839536,108790.0,108780.0,0.80596975]
[1748391347687,1.00919536,108790.0,108780.0,0.78652305]
[1748391347893,0.64839536,108790.0,108780.0,0.8007127]
[1748391348892,0.64839536,108790.0,108780.0,0.8007132]
[1748391349193,0.64839536,108790.0,108780.0,0.80071319]
[1748391349394,0.64839536,108790.0,108780.0,0.80071317]
[1748391350488,0.64839536,108790.0,108780.0,0.80519529]
[1748391350692,0.64839536,108790.0,108780.0,0.80519527]
[1748391351298,0.64839536,108790.0,108780.0,0.80519515]
[1748391351705,0.64839536,108790.0,108780.0,0.80519488]
[1748391351900,0.0694796,108790.0,108780.0,0.94040557]
[1748391352101,0.0694796,108790.0,108780.0,1.69670841]
[1748391352102,0.30789516,108790.0,108780.0,1.69670841]
[1748391352304,0.30789516,108790.0,108780.0,1.37670565]
[1748391352505,0.30789516,108790.0,108780.0,1.37670558]
[1748391354213,0.30789516,108790.0,108780.0,1.37669981]
[1748391354407,0.30789516,108790.0,108780.0,1.36251916]
[1748391354606,0.30789516,108790.0,108780.0,1.37669978]
[1748391355308,0.30789516,108790.0,108780.0,1.3766984]
[1748391355515,0.30789516,108790.0,108780.0,1.36251916]
[1748391355701,0.30789516,108790.0,108780.0,1.3766984]
[1748391356312,0.30789516,108790.0,108780.0,1.37669729]
[1748391358512,0.30789516,108790.0,108780.0,1.36251916]
[1748391358809,0.30789516,108790.0,108780.0,1.37669596]
[1748391359706,0.30789516,108790.0,108780.0,1.3766957]
[1748391360010,0.30789516,108790.0,108780.0,1.37669569]
[1748391360404,0.30789516,108790.0,108780.0,0.79132503]
[1748391360604,0.80390582,108790.0,108780.0,0.31442862]
[1748391360805,0.99869516,108790.0,108780.0,0.80462358]
[1748391361005,0.99869516,108790.0,108780.0,0.80462475]
[1748391361202,0.99869516,108790.0,108780.0,0.79044705]
[1748391361605,0.72869516,108790.0,108780.0,0.80462524]
[1748391361808,0.66869516,108790.0,108780.0,0.80462524]
[1748391362015,0.99869516,108790.0,108780.0,0.35510592]
[1748391362209,0.99869516,108790.0,108780.0,0.80458592]
[1748391362410,0.99869516,108790.0,108780.0,0.35510592]
[1748391362714,0.99869516,108790.0,108780.0,0.38214679]
[1748391362904,0.99869516,108790.0,108780.0,0.38214778]
[1748391363813,0.99869516,108790.0,108780.0,0.38214883]
[1748391364015,0.99869516,108790.0,108780.0,0.36796792]
[1748391364217,0.99869516,108790.0,108780.0,0.38214883]
[1748391364413,0.99869516,108790.0,108780.0,0.36796792]
[1748391364605,0.99869516,108790.0,108780.0,0.38214907]
[1748391364911,0.99869516,108790.0,108780.0,0.36796792]
[1748391365118,0.99869516,108790.0,108780.0,0.38214929]
[1748391366007,0.99869516,108790.0,108780.0,0.36796792]
[1748391366506,0.99869516,108790.0,108780.0,0.38215002]
[1748391366914,0.99869516,108790.0,108780.0,0.38203002]
[1748391367216,0.99869516,108790.0,108780.0,0.38215059]
[1748391368020,0.99869516,108790.0,108780.0,0.38215057]
[1748391369516,0.99869516,108790.0,108780.0,0.38215095]
[1748391369906,0.99869516,108790.0,108780.0,0.38215102]
[1748391371208,0.99869516,108790.0,108780.0,0.36796782]
[1748391371410,0.99869516,108790.0,108780.0,0.38215177]
[1748391372018,0.99869516,108790.0,108780.0,0.36796782]
[1748391372218,0.99869516,108790.0,108780.0,0.38215217]
[1748391372713,0.99869516,108790.0,108780.0,0.36796782]
[1748391372909,0.99869516,108790.0,108780.0,0.34092695]
[1748391373117,0.99869516,108790.0,108780.0,0.35511109]
[1748391373318,0.99869516,108790.0,108780.0,0.52042175]
[1748391374123,1.02869516,108790.0,108780.0,0.38521106]
[1748391374923,1.02869516,108790.0,108780.0,0.38521082]
[1748391375423,0.83869516,108790.0,108780.0,0.38521065]
[1748391375617,0.47789516,108790.0,108780.0,0.38521065]
[1748391375816,0.83869516,108790.0,108780.0,0.55122131]
[1748391376021,0.83869516,108790.0,108780.0,0.55122122]
[1748391376411,0.66869516,108790.0,108780.0,0.41601018]
[1748391376722,0.98869516,108790.0,108780.0,0.41601018]
[1748391376920,0.62789516,108790.0,108780.0,0.41601018]
[1748391377225,0.32789516,108790.0,108780.0,0.53703761]
[1748391377420,0.68869516,108790.0,108780.0,0.53703761]
[1748391378127,0.68869516,108790.0,108780.0,0.55122057]
[1748391378824,0.68869516,108790.0,108780.0,0.55122052]
[1748391379730,0.68869516,108790.0,108780.0,0.55122048]
[1748391379927,0.32789516,108790.0,108780.0,1.04643114]
[1748391380122,0.27719516,108790.0,108780.0,1.04643114]
[1748391380313,0.27719516,108790.0,108780.0,0.55122048]
[1748391380518,0.30939516,108790.0,108780.0,0.55122025]
[1748391380925,0.30939516,108790.0,108780.0,0.55110028]
[1748391381127,0.30939516,108790.0,108780.0,0.55122028]
[1748391382126,0.30939516,108790.0,108780.0,0.53703761]
[1748391382323,0.30939516,108790.0,108780.0,0.78622044]
[1748391382632,0.30939516,108790.0,108780.0,0.78622089]
[1748391383129,0.30939516,108790.0,108780.0,0.78622155]
[1748391383312,0.30939516,108790.0,108780.0,0.78622156]
[1748391383717,0.30939516,108790.0,108780.0,0.78622051]
[1748391384726,0.30939516,108790.0,108780.0,0.78622175]
[1748391385133,0.30939516,108790.0,108780.0,0.77203761]
[1748391385334,0.30939516,108790.0,108780.0,0.78622283]
[1748391385728,0.30939516,108790.0,108780.0,0.78622317]
[1748391385922,0.30939516,108790.0,108780.0,0.77203761]
[1748391386127,0.30939516,108790.0,108780.0,0.78622317]
[1748391386631,0.30939516,108790.0,108780.0,0.78622477]
[1748391387330,0.67019516,108790.0,108780.0,1.23178644]
[1748391387635,0.30939516,108790.0,108780.0,1.23190644]
[1748391387829,0.30939516,108790.0,108780.0,1.19135177]
[1748391388222,0.30939516,108790.0,108780.0,0.99694835]
[1748391388422,0.30939516,108790.0,108780.0,0.95635411]
[1748391388717,0.30939516,108790.0,108780.0,0.82114345]
[1748391388921,0.30939516,108790.0,108780.0,0.95635417]
[1748391389122,0.30939516,108790.0,108780.0,0.49648265]
[1748391389326,0.30939516,108790.0,108780.0,0.95583736]
[1748391390419,0.30939516,108790.0,108780.0,0.8206267]
[1748391390628,0.30939516,108790.0,108780.0,0.94164265]
[1748391390831,0.30939516,108790.0,108780.0,0.95583747]
[1748391391534,0.68939516,108790.0,108780.0,0.95583747]
[1748391391735,0.30939516,108790.0,108780.0,0.95583747]
[1748391392329,0.30939516,108790.0,108780.0,0.95583768]
[1748391393632,0.30939516,108790.0,108780.0,0.9558378]
[1748391393833,0.30939516,108790.0,108780.0,0.95583779]
[1748391394339,0.30939516,108790.0,108780.0,0.95583783]
[1748391394930,0.24469516,108790.0,108780.0,0.96583783]
[1748391395330,0.24469516,108790.0,108780.0,1.32663778]
[1748391395527,0.27729516,108790.0,108780.0,1.31244265]
[1748391395732,0.27729516,108790.0,108780.0,1.3266378]
[1748391396237,0.27729516,108790.0,108780.0,1.19142714]
[1748391396428,0.27729516,108790.0,108780.0,0.83062703]
[1748391396634,0.30889516,108790.0,108780.0,0.96583769]
[1748391397944,0.30889516,108790.0,108780.0,1.32663769]
[1748391398241,0.30889516,108790.0,108780.0,1.32663689]
[1748391398441,0.30889516,108790.0,108780.0,1.3266372]
[1748391398947,0.30889516,108790.0,108780.0,1.32663715]
[1748391399643,0.30889516,108790.0,108780.0,0.96583715]
[1748391400036,0.30889516,108790.0,108780.0,0.96583769]
[1748391400339,0.30889516,108790.0,108780.0,0.96583819]
[1748391400542,0.30889516,108790.0,108780.0,0.38546753]
[1748391400543,0.61889516,108790.0,108780.0,0.38546753]
[1748391400745,0.30889516,108790.0,108780.0,0.38546753]
[1748391400940,0.62889516,108790.0,108780.0,0.52067819]
[1748391401147,0.30889516,108790.0,108780.0,0.52067819]
[1748391401346,0.30889516,108790.0,108780.0,0.52067852]
[1748391401536,0.30889516,108790.0,108780.0,0.52067919]
[1748391401736,0.30889516,108790.0,108780.0,0.52067928]
[1748391401943,0.30889516,108790.0,108780.0,0.52067932]
[1748391402143,0.30889516,108790.0,108780.0,0.52067927]
[1748391402347,0.62889516,108790.0,108780.0,0.52067927]
[1748391402647,0.68889516,108790.0,108780.0,0.52067927]
[1748391402841,0.68751556,108790.0,108780.0,0.52067927]
[1748391403042,1.04831556,108790.0,108780.0,0.52067927]
[1748391403242,0.66831556,108790.0,108780.0,0.52068032]
[1748391403945,0.66831556,108790.0,108780.0,0.57467693]
[1748391404343,0.66831556,108790.0,108780.0,0.57467695]
[1748391404852,0.66831556,108790.0,108780.0,0.56047926]
[1748391405154,0.66831556,108790.0,108780.0,0.57467728]
[1748391406242,0.6136529,108790.0,108780.0,0.24569735]
[1748391406456,0.66831556,108790.0,108780.0,0.37535074]
[1748391406649,1.05941556,108790.0,108780.0,0.16090134]
[1748391406847,0.69941556,108790.0,108780.0,0.34467121]
[1748391407043,0.66861556,108790.0,108780.0,0.39866783]
[1748391407245,0.67861556,108790.0,108780.0,0.39866767]
[1748391407441,0.33861556,108790.0,108780.0,0.39854766]
[1748391407644,0.69941556,108790.0,108780.0,0.39866766]
[1748391407847,0.69941556,108790.0,108780.0,0.34467105]
[1748391408044,1.04941556,108790.0,108780.0,0.34467105]
[1748391408245,1.04941556,108790.0,108780.0,0.34467128]
[1748391408246,1.00941556,108790.0,108780.0,0.34467128]
[1748391408452,1.00941556,108790.0,108780.0,0.34467171]
[1748391408944,1.00941556,108790.0,108780.0,0.34467156]
[1748391409146,1.00941556,108790.0,108780.0,0.33047209]
[1748391409343,1.00941556,108790.0,108780.0,0.34467157]
[1748391409744,1.00941556,108790.0,108780.0,0.34467188]
[1748391410049,1.14461368,108790.0,108780.0,0.47987]
[1748391410239,1.14461368,108790.0,108780.0,0.46567021]
[1748391410442,1.14461368,108790.0,108780.0,0.47986997]
[1748391410644,1.14461368,108790.0,108780.0,0.47986979]
[1748391411049,0.78381368,108790.0,108780.0,0.47986979]
[1748391411348,1.14461368,108790.0,108780.0,0.51026979]
[1748391411849,1.14461368,108790.0,108780.0,0.51026895]
[1748391412245,1.14461368,108790.0,108780.0,0.51026894]
[1748391412451,1.14461368,108790.0,108780.0,0.49607021]
[1748391413449,1.14461368,108790.0,108780.0,0.51026892]
[1748391413644,1.14461368,108790.0,108780.0,0.51026888]
[1748391413851,1.14461368,108790.0,108780.0,0.49607021]
[1748391414348,1.14461368,108790.0,108780.0,0.52767021]
[1748391414948,1.14461368,108790.0,108780.0,0.31350021]
[1748391415149,1.14461368,108790.0,108780.0,0.25180021]
[1748391415448,1.18753978,108790.0,108780.0,0.17130731]
[1748391415750,1.18753978,108790.0,108780.0,0.29230655]
[1748391416155,1.1875357,108790.0,108780.0,0.19850555]
[1748391416338,1.1875357,108790.0,108780.0,0.33358367]
[1748391416542,1.1875357,108790.0,108780.0,0.33370367]
[1748391416752,1.1875357,108790.0,108780.0,0.33369927]
[1748391417548,1.1875357,108790.0,108780.0,0.51746927]
[1748391417746,1.1875357,108790.0,108780.0,0.58326927]
[1748391418057,0.8267357,108790.0,108780.0,0.55619115]
[1748391418353,1.1875357,108790.0,108780.0,0.55618729]
[1748391418554,1.1875357,108790.0,108780.0,0.54199655]
[1748391418761,1.1875357,108790.0,108780.0,0.5561873]
[1748391419253,1.1875357,108790.0,108780.0,0.58325739]
[1748391419851,1.05233758,108790.0,108780.0,0.58325739]
[1748391420047,1.1875357,108790.0,108780.0,0.58325739]
[1748391420241,1.1875357,108790.0,108780.0,0.5832556]
[1748391420658,1.18751181,108790.0,108780.0,0.44805748]
[1748391420859,1.18751181,108790.0,108780.0,0.58325537]
[1748391421750,1.18751181,108790.0,108780.0,0.5832546]
[1748391421947,1.18751181,108790.0,108780.0,0.56906664]
[1748391422143,1.18751181,108790.0,108780.0,0.5832546]
[1748391422348,1.14461368,108790.0,108780.0,0.5832546]
[1748391422857,1.14461368,108790.0,108780.0,0.43386852]
[1748391423056,1.14461368,108790.0,108780.0,0.58325435]
[1748391423648,1.14461368,108790.0,108780.0,0.58325368]
[1748391424360,1.14461368,108790.0,108780.0,0.58325342]
[1748391425358,1.14461368,108790.0,108780.0,0.56906664]
[1748391425562,1.00941556,108790.0,108780.0,0.56906664]
[1748391425751,1.14461368,108790.0,108780.0,0.58325275]
[1748391426357,1.14461368,108790.0,108780.0,0.58325285]
[1748391426948,1.1875048,108790.0,108780.0,0.39948285]
[1748391427155,1.1875048,108790.0,108780.0,0.39948284]
[1748391427361,1.1875048,108790.0,108780.0,0.39948294]
[1748391427562,1.1875048,108790.0,108780.0,0.26428477]
[1748391427761,1.1875048,108790.0,108780.0,0.39948289]
[1748391428061,1.1875048,108790.0,108780.0,0.38529664]
[1748391428358,1.1875048,108790.0,108780.0,0.20975448]
[1748391428554,1.1875048,108790.0,108780.0,0.23975448]
[1748391428753,1.1875048,108790.0,108780.0,0.24423657]
[1748391428972,1.18749989,108790.0,108780.0,0.24423698]